bitfinex/quotes_BTCUSD_20250410
["timestamp","ask_amount","ask_price","bid_price","bid_amount"]
[1744292934388,0.0463,81241.0,81228.0,0.05]
[1744292934606,0.012309,81238.0,81230.0,0.05]
[1744292934970,0.012309,81235.0,81230.0,0.02406311]
[1744292935175,0.012309,81235.0,81229.0,0.01146628]
[1744292935176,0.246189,81239.0,81229.0,0.01146628]
[1744292935381,0.2462,81235.0,81229.0,0.03552939]
[1744292935534,0.246185,81240.0,81230.0,0.01146628]
[1744292935733,0.246175,81243.0,81230.0,0.04033639]
[1744292935938,0.23444,81246.0,81230.0,0.04033639]
[1744292936123,0.24617,81245.0,81231.0,0.02406311]
[1744292936317,0.012308,81244.0,81231.0,0.02406311]
[1744292936498,0.246181,81241.0,81231.0,0.02406311]
[1744292936703,0.012308,81242.0,81232.0,0.01146628]
[1744292936916,0.258484,81243.0,81232.0,0.01146628]
[1744292937127,0.246175,81243.0,81236.0,0.02406311]
[1744292937346,0.012309,81240.0,81232.0,0.01146628]
[1744292937589,0.258464,81249.0,81236.0,0.02406311]
[1744292937728,0.0001681,81250.0,81237.0,0.02406311]
[1744292938149,0.0001681,81250.0,81238.0,0.0964]
[1744292938376,0.0001681,81250.0,81249.0,0.62733311]
[1744292938580,0.0001681,81250.0,81249.0,0.74788693]
[1744292938797,0.0001681,81250.0,81249.0,0.76242778]
[1744292938994,0.0001681,81250.0,81249.0,0.77101248]
[1744292939205,0.0001681,81250.0,81249.0,0.78247876]
[1744292939408,0.0001681,81250.0,81249.0,0.50947491]
[1744292939633,0.0001681,81250.0,81249.0,0.02005098]
[1744292939634,0.00059204,81250.0,81249.0,0.02005098]
[1744292939835,0.24674504,81250.0,81249.0,0.01146628]
[1744292940045,0.00059204,81250.0,81249.0,0.01146628]
[1744292940265,0.00059204,81250.0,81236.0,0.004807]
[1744292940266,0.246191,81238.0,81236.0,0.02406311]
[1744292940481,0.012311,81227.0,81226.0,0.00922353]
[1744292940696,0.012309,81235.0,81226.0,0.00922353]
[1744292940944,1.34430719,81250.0,81226.0,0.00922353]
[1744292940945,0.00018212,81234.0,81233.0,0.246205]
[1744292941167,0.00059204,81250.0,81238.0,0.24619]
[1744292941409,0.00059204,81250.0,81242.0,0.004807]
[1744292941839,0.00059204,81250.0,81243.0,0.246173]
[1744292942059,0.00059204,81250.0,81243.0,0.246175]
[1744292942305,0.00059204,81250.0,81237.0,0.02406311]
[1744292942510,0.246158,81249.0,81236.0,0.02406311]
[1744292942762,0.246158,81249.0,81226.0,0.012311]
[1744292942763,0.246214,81231.0,81219.0,0.004807]
[1744292942979,0.012309,81235.0,81219.0,0.004807]
[1744292943217,0.00059204,81250.0,81215.0,0.2037651]
[1744292943218,0.246232,81224.0,81215.0,0.2037651]
[1744292943627,0.37909682,81224.0,81215.0,0.2037651]
[1744292944092,0.012308,81245.0,81224.0,0.246231]
[1744292944363,0.012308,81245.0,81222.0,0.004807]
[1744292944364,0.246194,81237.0,81222.0,0.004807]
[1744292944577,1.2672,81240.0,81226.0,0.246224]
[1744292944808,1.2672,81240.0,81226.0,0.258536]
[1744292945033,0.246169,81245.0,81227.0,0.246222]
[1744292945273,1.2672,81264.0,81237.0,0.004807]
[1744292945274,0.2463221,81250.0,81237.0,0.004807]
[1744292945488,0.0001681,81250.0,81238.0,0.004807]
[1744292945687,0.0001681,81250.0,81242.0,0.004807]
[1744292945910,0.0001681,81250.0,81242.0,0.250983]
[1744292946126,0.0001681,81250.0,81249.0,0.258463]
[1744292946253,0.0001681,81250.0,81249.0,0.250963]
[1744292946458,0.0001681,81250.0,81247.0,0.02406311]
[1744292946685,0.0001681,81250.0,81248.0,0.004807]
[1744292946889,0.0001681,81250.0,81249.0,0.246156]
[1744292947092,0.0001681,81250.0,81249.0,0.26327]
[1744292947287,0.0001681,81250.0,81249.0,0.004807]
[1744292947497,0.0001681,81250.0,81249.0,0.02887011]
[1744292948123,0.0001681,81250.0,81249.0,0.004807]
[1744292948315,0.0001681,81250.0,81246.0,0.02406311]
[1744292948461,0.0001681,81250.0,81236.0,0.004807]
[1744292948462,0.0001681,81250.0,81245.0,0.02406311]
[1744292949036,0.0001681,81250.0,81241.0,0.004807]
[1744292949037,0.0001681,81250.0,81243.0,0.02406311]
[1744292949403,0.2463221,81250.0,81241.0,0.02406311]
[1744292949623,0.246209,81232.0,81229.0,0.02406311]
[1744292949772,0.258513,81234.0,81229.0,0.02406311]
[1744292949952,0.012309,81237.0,81229.0,0.02406311]
[1744292950155,0.246203,81234.0,81229.0,0.02406311]
[1744292950366,0.01231,81230.0,81229.0,0.02406311]
[1744292950543,0.01231,81231.0,81229.0,0.02406311]
[1744292950744,0.246235,81223.0,81220.0,0.16668651]
[1744292950950,0.246241,81221.0,81220.0,0.16681372]
[1744292951324,0.258553,81221.0,81220.0,0.16681372]
[1744292951623,0.24623,81225.0,81220.0,0.19087683]
[1744292951831,0.246226,81227.0,81222.0,0.02406311]
[1744292952077,0.012312,81221.0,81220.0,0.16681372]
[1744292953083,0.012312,81221.0,81220.0,0.00012721]
[1744292953677,0.246239,81222.0,81220.0,0.00012721]
[1744292953913,0.012312,81221.0,81220.0,0.00012721]
[1744292954152,0.13286582,81221.0,81220.0,0.00012721]
[1744292954386,0.2483413,81221.0,81220.0,2.1e-07]
[1744292954608,0.5883413,81221.0,81220.0,2.1e-07]
[1744292954833,0.87286582,81221.0,81220.0,2.1e-07]
[1744292955495,1.11910682,81221.0,81220.0,2.1e-07]
[1744292955732,0.293839,81225.0,81220.0,2.1e-07]
[1744292955733,0.01231,81230.0,81220.0,2.1e-07]
[1744292955943,0.258553,81221.0,81220.0,2.1e-07]
[1744292956157,0.24687,81232.0,81220.0,2.1e-07]
[1744292956368,0.246213,81231.0,81221.0,0.004807]
[1744292956595,0.012308,81246.0,81229.0,0.004807]
[1744292956820,0.246195,81237.0,81229.0,0.004807]
[1744292957025,0.258499,81238.0,81229.0,0.004807]
[1744292957178,0.258499,81238.0,81220.0,2.1e-07]
[1744292957179,0.258553,81221.0,81220.0,2.1e-07]
[1744292957377,0.246231,81225.0,81220.0,2.1e-07]
[1744292957597,0.246238,81222.0,81220.0,2.1e-07]
[1744292957793,0.37910682,81221.0,81220.0,2.1e-07]
[1744292958961,0.258553,81221.0,81220.0,2.1e-07]
[1744292959372,0.258545,81224.0,81220.0,2.1e-07]
[1744292959528,0.246214,81231.0,81220.0,2.1e-07]
[1744292959529,0.01231,81232.0,81220.0,2.1e-07]
[1744292959758,0.23456,81235.0,81223.0,0.246234]
[1744292959965,0.23456,81235.0,81225.0,0.004807]
[1744292960311,0.258553,81221.0,81220.0,2.1e-07]
[1744292960853,0.37910682,81221.0,81220.0,2.1e-07]
[1744292961717,0.246228,81226.0,81220.0,2.1e-07]
[1744292961718,0.012311,81226.0,81220.0,2.1e-07]
[1744292961945,0.246223,81227.0,81220.0,2.1e-07]
[1744292962167,0.258553,81221.0,81220.0,2.1e-07]
[1744292962413,0.37910682,81221.0,81220.0,2.1e-07]
[1744292962720,0.71910682,81221.0,81220.0,2.1e-07]
[1744292964719,0.246305,81200.0,81190.0,0.004807]
[1744292964929,0.2463,81202.0,81190.0,0.004807]
[1744292965130,0.012315,81198.0,81183.0,0.004807]
[1744292965335,0.258639,81194.0,81181.0,0.0003362]
[1744292965538,0.37919282,81194.0,81181.0,0.0003362]
[1744292965794,0.24632,81196.0,81184.0,0.004807]
[1744292965994,0.2346,81199.0,81190.0,0.004807]
[1744292966169,0.012316,81194.0,81181.0,0.0003362]
[1744292966381,0.13286982,81194.0,81181.0,0.0003362]
[1744292967429,0.47286982,81194.0,81181.0,0.0003362]
[1744292969138,0.87286982,81194.0,81181.0,0.0003362]
[1744292969342,0.53286982,81194.0,81181.0,0.0003362]
[1744292969476,0.4,81194.0,81181.0,0.0003362]
[1744292969676,0.752316,81194.0,81181.0,0.0003362]
[1744292969878,0.752316,81194.0,81181.0,0.0051432]
[1744292970080,0.4,81194.0,81181.0,0.0051432]
[1744292970280,0.412316,81194.0,81181.0,0.0051432]
[1744292970465,0.012316,81194.0,81181.0,0.0051432]
[1744292971661,0.246308,81199.0,81187.0,0.0051432]
[1744292971867,0.246316,81197.0,81190.0,0.004807]
[1744292972091,0.258631,81197.0,81190.0,0.004807]
[1744292972287,0.246318,81196.0,81190.0,0.004807]
[1744292972691,0.012315,81197.0,81190.0,0.004807]
[1744292973682,0.246321,81195.0,81190.0,0.004807]
[1744292974114,0.258624,81199.0,81190.0,0.004807]
[1744292974115,0.24627,81212.0,81199.0,0.004807]
[1744292974273,0.246305,81200.0,81199.0,0.004807]
[1744292974473,0.246291,81205.0,81200.0,0.004807]
[1744292974675,0.246299,81202.0,81195.0,0.004807]
[1744292974895,0.246323,81194.0,81191.0,0.004807]
[1744292975095,0.012315,81199.0,81191.0,0.004807]
[1744292975303,0.586247,81220.0,81198.0,0.004807]
[1744292975525,0.012312,81221.0,81206.0,0.004807]
[1744292975761,0.246245,81220.0,81213.0,0.004807]
[1744292975912,0.246239,81222.0,81214.0,0.004807]
[1744292976114,0.012312,81221.0,81214.0,0.004807]
[1744292976350,0.246251,81218.0,81214.0,0.004807]
[1744292976669,0.37183035,81232.0,81219.0,0.02887011]
[1744292976835,0.246213,81231.0,81219.0,0.02887011]
[1744292977036,0.12562135,81232.0,81220.0,0.246244]
[1744292977237,0.12562135,81232.0,81225.0,0.004807]
[1744292977485,1.514103,81241.0,81225.0,0.004807]
[1744292977677,1.26792,81241.0,81225.0,0.16173493]
[1744292978006,0.258484,81243.0,81225.0,0.16173493]
[1744292978415,0.12562135,81247.0,81225.0,0.02887011]
[1744292978416,0.01231,81231.0,81225.0,0.02887011]
[1744292978612,0.246206,81233.0,81225.0,0.02406311]
[1744292978808,0.24635314,81226.0,81223.0,0.02887011]
[1744292979046,0.25866414,81226.0,81219.0,0.004807]
[1744292979198,0.012312,81220.0,81215.0,0.02406311]
[1744292979404,0.246232,81224.0,81216.0,0.02887011]
[1744292979722,0.012312,81218.0,81212.0,0.004807]
[1744292979919,0.012313,81213.0,81208.0,0.004807]
[1744292980247,0.012312,81218.0,81208.0,0.004807]
[1744292980430,0.012312,81216.0,81209.0,0.02406311]
[1744292980725,0.012312,81221.0,81212.0,0.004807]
[1744292980927,0.246248,81219.0,81212.0,0.004807]
[1744292981125,0.258554,81221.0,81212.0,0.004807]
[1744292981328,0.246251,81218.0,81212.0,0.004807]
[1744292981592,0.24625,81219.0,81212.0,0.004807]
[1744292981833,0.258562,81219.0,81212.0,0.004807]
[1744292982086,0.258562,81219.0,81194.0,0.004807]
[1744292982087,0.24632,81195.0,81194.0,0.004807]
[1744292982319,0.012316,81194.0,81193.0,0.000336]
[1744292984476,0.13286982,81194.0,81193.0,0.000336]
[1744292984705,0.012316,81194.0,81193.0,0.000336]
[1744292985184,0.258636,81195.0,81193.0,0.000336]
[1744292985408,0.246321,81196.0,81193.0,0.000336]
[1744292985645,0.012315,81199.0,81193.0,0.000336]
[1744292985876,0.246311,81198.0,81193.0,0.000336]
[1744292986105,0.646315,81197.0,81193.0,0.000336]
[1744292986587,0.258638,81195.0,81193.0,0.000336]
[1744292986810,0.012316,81194.0,81193.0,0.000336]
[1744292988012,0.246318,81196.0,81193.0,0.000336]
[1744292988211,0.246323,81194.0,81193.0,0.000336]
[1744292988512,0.258633,81196.0,81193.0,0.000336]
[1744292988681,0.246323,81194.0,81193.0,0.000336]
[1744292988885,0.258639,81194.0,81193.0,0.000336]
[1744292989113,0.82387632,81194.0,81193.0,0.000336]
[1744292989485,0.71919282,81194.0,81193.0,0.000336]
[1744292989868,0.76549282,81194.0,81193.0,0.000336]
[1744292990299,0.598658,81188.0,81187.0,0.0003362]
[1744292990495,0.598658,81188.0,81181.0,0.0003362]
[1744292990496,0.71829167,81188.0,81181.0,0.0003362]
[1744292990697,0.73377267,81182.0,81181.0,0.0003362]
[1744292990902,0.71923182,81182.0,81181.0,0.0003362]
[1744292992120,0.73377267,81182.0,81181.0,2e-07]
[1744292992322,0.258709,81172.0,81171.0,0.004]
[1744292992642,0.71926282,81172.0,81171.0,0.004]
[1744292992843,1.11926282,81172.0,81171.0,0.004]
[1744292993261,0.95018282,81172.0,81171.0,0.004]
[1744292993474,0.71926282,81172.0,81171.0,0.004]
[1744292993816,0.246387,81173.0,81171.0,0.004]
[1744292993817,0.4,81173.0,81171.0,0.004]
[1744292994026,0.23092,81184.0,81171.0,0.004]
[1744292994224,0.012317,81184.0,81179.0,0.004807]
[1744292994477,0.012317,81184.0,81173.0,0.004807]
[1744292994478,0.258682,81181.0,81173.0,0.004807]
[1744292994666,0.246367,81180.0,81173.0,0.004807]
[1744292994865,0.246362,81182.0,81175.0,0.02406311]
[1744292995073,0.246379,81176.0,81173.0,0.004807]
[1744292995406,0.258699,81177.0,81171.0,0.004]
[1744292995580,0.246373,81178.0,81171.0,0.004]
[1744292995881,0.012318,81177.0,81171.0,0.004]
[1744292996079,0.246377,81177.0,81171.0,0.004]
[1744292996303,0.258695,81177.0,81171.0,0.004]
[1744292996502,0.246379,81176.0,81171.0,0.004]
[1744292997259,0.12055382,81182.0,81171.0,0.004]
[1744292997485,0.012315,81201.0,81184.0,0.012317]
[1744292997733,0.246313,81198.0,81187.0,0.004807]
[1744292997880,1.280235,81197.0,81187.0,0.004807]
[1744292998074,1.26792,81197.0,81187.0,0.004807]
[1744292998339,1.26792,81197.0,81187.0,0.04118711]
[1744292998508,1.26792,81197.0,81187.0,0.02887011]
[1744292998719,0.01244407,81188.0,81180.0,0.004807]
[1744292998898,0.012318,81182.0,81178.0,0.02406311]
[1744292999247,0.012318,81182.0,81174.0,0.004807]
[1744292999248,0.24638,81176.0,81174.0,0.02406311]
[1744292999387,0.012318,81178.0,81172.0,0.004807]
[1744292999590,0.258692,81178.0,81173.0,0.02406311]
[1744292999791,0.012318,81176.0,81169.0,0.02406311]
[1744292999991,0.246384,81174.0,81169.0,0.02406311]
[1744293000234,0.012319,81175.0,81168.0,0.004807]
[1744293000437,0.012319,81172.0,81163.0,0.004807]
[1744293000674,0.18830972,81172.0,81160.0,0.0003362]
[1744293001215,0.52830972,81172.0,81160.0,0.0003362]
[1744293001414,0.47287282,81172.0,81160.0,0.0003362]
[1744293001676,0.258705,81176.0,81160.0,0.0003362]
[1744293001677,0.477249,81179.0,81166.0,0.004807]
[1744293001838,0.243198,81179.0,81167.0,0.004807]
[1744293002000,0.246387,81173.0,81166.0,0.02406311]
[1744293002201,0.13287282,81172.0,81160.0,0.0003362]
[1744293002407,0.2237717,81172.0,81160.0,0.0003362]
[1744293002634,0.6237717,81172.0,81160.0,0.0003362]
[1744293003440,0.53287282,81172.0,81160.0,0.0003362]
[1744293003945,0.87287282,81172.0,81160.0,0.0003362]
[1744293004328,0.88741367,81172.0,81160.0,0.0003362]
[1744293004511,0.598744,81161.0,81160.0,0.0003362]
[1744293004680,0.95021782,81161.0,81160.0,0.0003362]
[1744293005071,0.95021782,81161.0,81143.0,0.2037651]
[1744293005072,0.352322,81150.0,81143.0,4.3e-07]
[1744293005307,0.598833,81133.0,81132.0,6.5e-07]
[1744293005543,0.598842,81130.0,81129.0,1.7e-07]
[1744293005765,1.11939582,81130.0,81129.0,1.7e-07]
[1744293005960,0.86055382,81130.0,81129.0,1.7e-07]
[1744293006867,0.86055382,81130.0,81116.0,0.14847457]
[1744293006868,0.34,81129.0,81116.0,0.24656]
[1744293007077,0.23092,81128.0,81115.0,0.0051434]
[1744293007267,0.23092,81128.0,81117.0,0.246555]
[1744293007445,0.23092,81128.0,81115.0,0.0051434]
[1744293007608,0.23092,81128.0,81125.0,0.246529]
[1744293007810,0.23092,81128.0,81120.0,0.004807]
[1744293008020,0.12055382,81127.0,81116.0,0.02406311]
[1744293008422,0.012326,81125.0,81115.0,0.0003364]
[1744293008701,0.12055382,81124.0,81115.0,0.0003364]
[1744293008840,0.23092,81128.0,81117.0,0.02406311]
[1744293009292,0.23092,81128.0,81119.0,0.246549]
[1744293009491,0.23092,81128.0,81127.0,0.251334]
[1744293009897,0.231,81146.0,81134.0,0.246503]
[1744293010096,0.12055382,81145.0,81131.0,0.246512]
[1744293010340,0.012327,81119.0,81112.0,0.004807]
[1744293010571,0.012326,81124.0,81107.0,0.300091]
[1744293010718,0.012327,81122.0,81112.0,0.02406311]
[1744293011082,0.012326,81125.0,81115.0,0.02482413]
[1744293011083,0.12055382,81121.0,81115.0,0.02482413]
[1744293011289,0.231,81128.0,81120.0,0.02406311]
[1744293011620,0.34,81144.0,81132.0,0.246511]
[1744293011846,0.34,81144.0,81127.0,0.004807]
[1744293011847,0.012324,81142.0,81127.0,0.004807]
[1744293012054,0.012324,81142.0,81126.0,0.02406311]
[1744293012055,0.12055382,81142.0,81129.0,0.251327]
[1744293012253,0.01185278,81153.0,81140.0,0.012324]
[1744293012428,0.01185278,81153.0,81143.0,0.004807]
[1744293012627,0.01185278,81153.0,81151.0,0.246451]
[1744293012901,0.01185278,81153.0,81152.0,0.04119211]
[1744293013080,0.16330776,81175.0,81154.0,0.04119211]
[1744293013428,0.16330776,81175.0,81154.0,0.16174593]
[1744293013626,0.16330776,81175.0,81154.0,0.61248678]
[1744293013827,0.00012697,81155.0,81154.0,0.101007]
[1744293013944,0.00012697,81155.0,81154.0,0.053707]
[1744293014153,0.00012697,81155.0,81154.0,0.21064593]
[1744293014355,0.00012697,81155.0,81148.0,0.586462]
[1744293014356,0.00012697,81155.0,81151.0,0.004807]
[1744293015162,0.00012697,81155.0,81146.0,0.004807]
[1744293015443,0.00012697,81155.0,81147.0,0.02406311]
[1744293015796,0.00012697,81155.0,81136.0,0.012324]
[1744293015797,0.012324,81138.0,81134.0,0.004807]
[1744293015999,0.012324,81138.0,81122.0,0.24654]
[1744293016000,0.012326,81125.0,81122.0,0.004807]
[1744293016199,0.012326,81129.0,81117.0,0.02406311]
[1744293016463,0.012326,81129.0,81116.0,0.004807]
[1744293016464,0.258851,81128.0,81116.0,0.004807]
[1744293016678,0.258848,81129.0,81119.0,0.02406311]
[1744293016853,0.87732,81130.0,81122.0,0.004807]
[1744293016854,0.2308,81130.0,81122.0,0.004807]
[1744293017052,0.2308,81130.0,81122.0,0.02887011]
[1744293017683,0.2308,81130.0,81122.0,0.00523162]
[1744293017835,0.477318,81130.0,81122.0,0.00042462]
[1744293018039,0.13287982,81129.0,81122.0,0.00042462]
[1744293018257,0.36707582,81129.0,81122.0,0.00042462]
[1744293018483,0.12055382,81129.0,81122.0,0.00042462]
[1744293018607,0.12055382,81129.0,81122.0,0.02448773]
[1744293018961,0.246537,81124.0,81122.0,0.00042462]
[1744293019187,0.12055382,81129.0,81122.0,0.00042462]
[1744293019407,0.2308,81130.0,81125.0,0.004807]
[1744293019561,0.23084,81145.0,81138.0,0.004807]
[1744293019764,0.012324,81142.0,81129.0,0.02406311]
[1744293019934,0.2465,81136.0,81122.0,0.00523162]
[1744293020126,0.246503,81135.0,81124.0,0.02406311]
[1744293020473,0.246503,81135.0,81122.0,0.00042462]
[1744293020474,0.012326,81123.0,81122.0,0.00042462]
[1744293020623,0.36371982,81123.0,81122.0,0.00042462]
[1744293021075,0.35139382,81123.0,81122.0,0.00042462]
[1744293021267,0.23084,81123.0,81122.0,0.00042462]
[1744293022223,0.75515532,81123.0,81122.0,0.00042462]
[1744293022573,1.16969617,81123.0,81122.0,0.00042462]
[1744293022768,1.16988917,81123.0,81122.0,0.00042462]
[1744293023176,1.17903342,81123.0,81122.0,0.00042462]
[1744293023536,1.17907342,81123.0,81122.0,0.00042462]
[1744293023672,1.17888042,81123.0,81122.0,0.00042462]
[1744293024114,1.17907342,81123.0,81122.0,6.2e-07]
[1744293024325,1.17888042,81123.0,81122.0,6.2e-07]
[1744293024472,1.10375982,81123.0,81122.0,6.2e-07]
[1744293024677,1.09143382,81123.0,81122.0,6.2e-07]
[1744293024933,0.63088,81123.0,81122.0,6.2e-07]
[1744293025140,0.23088,81123.0,81122.0,6.2e-07]
[1744293025364,0.24278775,81157.0,81131.0,0.012325]
[1744293025670,0.24278775,81157.0,81122.0,6.2e-07]
[1744293025671,0.35143382,81157.0,81145.0,0.004807]
[1744293025948,0.35143382,81157.0,81145.0,0.251278]
[1744293026287,0.23088,81157.0,81156.0,0.246438]
[1744293026494,0.012321,81156.0,81148.0,0.02406311]
[1744293026782,0.35143382,81157.0,81150.0,0.02406311]
[1744293026930,0.35143382,81157.0,81154.0,0.02406311]
[1744293027257,0.0124883,81165.0,81155.0,0.004807]
[1744293027483,0.00042357,81157.0,81154.0,0.02406311]
[1744293027691,0.00042357,81157.0,81153.0,0.02406311]
[1744293027859,0.00042357,81157.0,81151.0,0.02406311]
[1744293028139,0.24645,81153.0,81143.0,0.004807]
[1744293028338,0.012322,81151.0,81144.0,0.02406311]
[1744293028480,0.13287582,81150.0,81139.0,0.02406311]
[1744293028681,0.13287582,81150.0,81137.0,0.004807]
[1744293028682,0.012323,81148.0,81138.0,0.02406311]
[1744293028877,0.246469,81147.0,81139.0,0.02406311]
[1744293029134,0.24647,81146.0,81138.0,0.02406311]
[1744293029483,0.34,81155.0,81142.0,0.004807]
[1744293029680,0.12055382,81154.0,81142.0,0.004807]
[1744293029854,0.246448,81153.0,81142.0,0.004807]
[1744293030074,0.246458,81150.0,81142.0,0.004807]
[1744293030284,0.012322,81151.0,81139.0,0.02406311]
[1744293030417,0.012324,81138.0,81121.0,0.004807]
[1744293030618,0.246526,81128.0,81118.0,0.004807]
[1744293030827,0.35143382,81137.0,81129.0,0.02406311]
[1744293031026,0.23088,81156.0,81143.0,0.004807]
[1744293031288,0.46055382,81155.0,81143.0,0.004807]
[1744293031488,0.00240103,81154.0,81149.0,0.246459]
[1744293031681,0.00240103,81154.0,81145.0,0.251276]
[1744293031898,0.23088,81156.0,81146.0,0.246467]
[1744293032076,0.00226405,81153.0,81151.0,0.246451]
[1744293032249,0.00042357,81154.0,81153.0,0.27531811]
[1744293032430,0.00042357,81154.0,81153.0,0.28764011]
[1744293032836,0.0001683,81165.0,81164.0,0.62760411]
[1744293033038,0.0002953,81165.0,81164.0,0.74815793]
[1744293033240,0.0002953,81165.0,81164.0,0.78562547]
[1744293033445,0.243194,81203.0,81167.0,0.62759511]
[1744293033680,0.012313,81212.0,81167.0,0.78561647]
[1744293033884,0.23088,81202.0,81167.0,0.83231647]
[1744293034059,0.23088,81206.0,81195.0,0.004807]
[1744293034264,0.12974858,81199.0,81195.0,0.004807]
[1744293034497,0.12974858,81199.0,81190.0,0.02406311]
[1744293034498,0.012315,81197.0,81190.0,0.02406311]
[1744293034705,0.246326,81194.0,81190.0,0.02406311]
[1744293034869,0.012316,81189.0,81179.0,0.004807]
[1744293035074,0.012316,81192.0,81188.0,0.02406311]
[1744293035275,0.258652,81190.0,81183.0,0.02406311]
[1744293035518,0.258652,81190.0,81175.0,0.004807]
[1744293035519,0.24637,81179.0,81175.0,0.004807]
[1744293035724,0.258682,81181.0,81175.0,0.004807]
[1744293035893,0.2308,81185.0,81180.0,0.02406311]
[1744293036499,0.2308,81185.0,81179.0,0.004807]
[1744293036500,0.2308,81185.0,81179.0,0.02887011]
[1744293036751,0.2308,81185.0,81180.0,0.02406311]
[1744293036967,0.69336934,81210.0,81195.0,0.004807]
[1744293037146,0.012312,81218.0,81198.0,0.27518111]
[1744293037340,0.12901288,81199.0,81198.0,0.28749611]
[1744293038064,0.12901288,81199.0,81198.0,0.79374993]
[1744293038368,0.0001682,81204.0,81203.0,0.64202096]
[1744293038369,2e-07,81204.0,81203.0,0.64202096]
[1744293038570,2.6e-07,81219.0,81218.0,0.62743211]
[1744293038688,2.6e-07,81219.0,81218.0,0.76252678]
[1744293038884,2.6e-07,81219.0,81218.0,0.72392282]
[1744293039127,2.6e-07,81219.0,81218.0,0.74798593]
[1744293040439,2.6e-07,81219.0,81218.0,0.004807]
[1744293040643,2.6e-07,81219.0,81218.0,0.02887011]
[1744293040852,2.6e-07,81219.0,81215.0,0.02406311]
[1744293041053,2.6e-07,81219.0,81214.0,0.004807]
[1744293041679,2.6e-07,81219.0,81218.0,0.27512011]
[1744293041817,2.6e-07,81219.0,81218.0,0.02887011]
[1744293042223,0.258526,81230.0,81227.0,0.004807]
[1744293042476,0.00013659,81228.0,81227.0,0.004807]
[1744293042678,7.586e-05,81228.0,81227.0,0.02887011]
[1744293042893,0.246226,81226.0,81225.0,0.02406311]
[1744293043181,4.551e-05,81228.0,81227.0,0.02887011]
[1744293043329,0.00412718,81229.0,81228.0,0.02406311]
[1744293043679,0.0042334,81229.0,81228.0,0.02406311]
[1744293043892,0.0042334,81229.0,81213.0,0.246263]
[1744293043893,0.012311,81226.0,81220.0,0.004807]
[1744293044097,0.012311,81226.0,81219.0,0.02406311]
[1744293044098,0.012314,81208.0,81207.0,0.02406311]
[1744293044299,0.012311,81224.0,81210.0,0.004807]
[1744293044473,0.258577,81214.0,81210.0,0.004807]
[1744293044676,0.00412718,81229.0,81228.0,0.004807]
[1744293044995,0.00412718,81229.0,81228.0,0.02887011]
[1744293045195,0.012311,81224.0,81220.0,0.004807]
[1744293045352,0.00412718,81229.0,81228.0,0.02406311]
[1744293045559,0.00412718,81229.0,81228.0,0.02887011]
[1744293045780,0.00426374,81229.0,81227.0,0.004807]
[1744293045981,0.00412718,81229.0,81228.0,0.02406311]
[1744293046840,0.00412718,81229.0,81227.0,0.004807]
[1744293047090,0.00412718,81229.0,81228.0,0.02406311]
[1744293047290,0.258562,81218.0,81217.0,0.004807]
[1744293047494,0.012311,81225.0,81222.0,0.02406311]
[1744293047694,0.23452718,81229.0,81228.0,0.004807]
[1744293047891,0.00412718,81229.0,81228.0,0.27509011]
[1744293048095,0.00412718,81229.0,81228.0,0.02887011]
[1744293048496,0.00412718,81229.0,81228.0,0.04118111]
[1744293050065,0.00412718,81229.0,81228.0,0.16173493]
[1744293050698,0.0001682,81238.0,81237.0,0.28737211]
[1744293050905,0.00059206,81238.0,81237.0,0.42246678]
[1744293051313,0.00059206,81238.0,81237.0,0.76246678]
[1744293051517,0.0001682,81249.0,81237.0,0.76246678]
[1744293051518,0.0001682,81249.0,81248.0,0.603273]
[1744293051724,0.0001682,81249.0,81248.0,0.73836767]
[1744293051929,0.0001681,81250.0,81249.0,0.41394785]
[1744293052139,0.0001681,81250.0,81249.0,0.55856478]
[1744293052344,0.0001682,81279.0,81261.0,0.012306]
[1744293052547,0.0001682,81279.0,81261.0,0.41758378]
[1744293052774,0.00029541,81262.0,81261.0,0.41758378]
[1744293052972,0.0001682,81279.0,81261.0,0.41758378]
[1744293052973,1e-07,81275.0,81274.0,0.62725511]
[1744293053180,3e-07,81279.0,81278.0,0.64178296]
[1744293053392,0.004,81319.0,81297.0,0.28718111]
[1744293053598,2e-07,81298.0,81297.0,0.76227578]
[1744293054141,0.004,81319.0,81308.0,0.64168696]
[1744293054370,0.004,81319.0,81318.0,0.64165596]
[1744293054589,0.004,81319.0,81318.0,0.76220978]
[1744293054800,8e-05,81352.0,81347.0,0.004807]
[1744293055026,0.00442404,81349.0,81348.0,0.02887011]
[1744293055233,0.00442404,81349.0,81348.0,0.04116211]
[1744293055659,0.00442404,81349.0,81348.0,0.16171593]
[1744293055874,0.00442404,81349.0,81348.0,0.18434292]
[1744293056268,0.00442404,81349.0,81348.0,0.17205092]
[1744293056915,0.00442404,81349.0,81348.0,0.18434292]
[1744293057634,0.00442404,81349.0,81348.0,0.52680135]
[1744293057810,0.00442404,81349.0,81348.0,0.54831018]
[1744293058010,0.00459234,81349.0,81348.0,0.57158319]
[1744293058315,8e-05,81352.0,81351.0,0.04116211]
[1744293058524,0.00020715,81352.0,81351.0,0.51625678]
[1744293059696,0.2581593,81398.0,81378.0,0.28692411]
[1744293059896,0.00412696,81379.0,81378.0,0.40747793]
[1744293060828,0.00412696,81379.0,81378.0,0.14942393]
[1744293061175,0.00412696,81379.0,81378.0,0.04653135]
[1744293061471,0.00412696,81379.0,81378.0,0.02727524]
[1744293062251,0.00412696,81379.0,81378.0,0.05133835]
[1744293062454,0.01641496,81379.0,81378.0,0.02246824]
[1744293062628,0.00412696,81379.0,81378.0,0.05133835]
[1744293062828,0.01641496,81379.0,81378.0,0.02246824]
[1744293063029,0.012288,81379.0,81378.0,0.02246824]
[1744293063273,0.258101,81363.0,81362.0,0.01122797]
[1744293063573,0.01229,81363.0,81362.0,0.01122797]
[1744293063749,0.37865482,81363.0,81362.0,0.01122797]
[1744293063956,0.37865482,81363.0,81351.0,0.02725219]
[1744293063957,0.258137,81352.0,81351.0,0.02725219]
[1744293064133,0.245842,81353.0,81351.0,0.02244519]
[1744293064506,0.012292,81351.0,81347.0,0.02244519]
[1744293064692,0.258143,81350.0,81344.0,0.004807]
[1744293064920,0.245858,81348.0,81344.0,0.004807]
[1744293065040,0.012292,81352.0,81344.0,0.004807]
[1744293065241,0.258184,81337.0,81336.0,0.01122797]
[1744293065444,0.37873782,81337.0,81336.0,0.01165201]